Cogmind - Beta 13 @@@ ROGUE MODE // 2024.07.23 @ 10:29:24 Player: Attma Result: Smashed by cave-in Performance ------------- Evolutions (0) 0 Regions Visited (1) 200 Robots Destroyed (15) 75 Value Destroyed (257) 257 Prototype IDs (0) 0 Alien Tech Used (0) 0 Bonus (0) 0 TOTAL SCORE: 532 Bonus ------- None Cogmind --------- Core Integrity 0/250 Matter 275/300 Energy 121/125 System Corruption 5% Temperature Cool (20) Movement Treading (320) Ox2 Location -10/Materials Parts ------- > --- POWER (1) -------- Light Ion Engine > --- PROPULSION (2) --- Light Treads Light Treads > --- UTILITY (2) ------ Huge Storage Unit Seismic Detector > --- WEAPON (2) ------- Light Assault Rifle > --- INVENTORY (25) --- Ion Engine Light Ion Engine Light Treads Small Storage Unit Signal Interpreter Utility Shielding Assault Rifle Light Assault Rifle Peak State ------------ > --- POWER ------------ Light Ion Engine > --- PROPULSION ------- Light Treads Light Treads > --- UTILITY ---------- Small Storage Unit Improved Terrain Scanner > --- WEAPON ----------- EM Pulse Gun Light Assault Rifle > --- INVENTORY -------- Light Ion Engine Seismic Detector [Rating: 9] Favorites ----------- Power Light Ion Engine Engine Light Ion Engine Propulsion Light Treads Treads Light Treads Utility Seismic Detector Device Seismic Detector Storage Small Storage Unit Weapon Light Assault Rifle Energy Gun EM Pulse Gun Ballistic Gun Light Assault Rifle Special Weapon Mining Laser Build | -11 -10 ------- Run | Yrd Mat Slots Evolved . | . . Power . | . . Propulsion . | . . Utility . | . . Weapon . | . . Parts Attached 20 | 8 12 Power 2 | 1 1 Engine 2 | 1 1 Core . | . . Reactor . | . . Propulsion 3 | 2 1 Treads 3 | 2 1 Leg . | . . Wheel . | . . Hover . | . . Flight . | . . Utility 6 | 3 3 Device 4 | 2 2 Storage 2 | 1 1 Processor . | . . Hackware . | . . Protection . | . . Artifact . | . . Weapon 9 | 2 7 Energy Gun 1 | 1 . Energy Cannon . | . . Ballistic Gun 5 | 1 4 Ballistic Cannon . | . . Launcher . | . . Special Weapon 3 | . 3 Impact Weapon . | . . Slashing Weapon . | . . Piercing Weapon . | . . Special Melee Weapon . | . . Unidentified Prototypes . | . . Parts Lost 5 | 1 4 Power . | . . Propulsion 1 | . 1 Utility 2 | 1 1 Weapon 2 | . 2 Highest Loss Streak 2 | 1 2 To Critical Strikes . | . . Average Slot Usage (%) 98 | . 98 Engine 14 | . 14 Treads 27 | . 27 Device 13 | . 13 Storage 14 | . 14 Energy Gun 2 | . 2 Ballistic Gun 24 | . 24 Naked Turns . | . . Heaviest Build 86 | 12 86 Greatest Support 40 | 40 40 Greatest Overweight (x) 2 | . 2 Average Overweight (x) . | . . Largest Inventory Capacity 25 | 8 25 Average Capacity 10 | 7 11 Most Carried 8 | 4 8 Average Carried 6 | 2 7 Final Capacity 25 | 8 25 Final Carried 8 | 4 8 Class Distribution -------------------- 74% | Mutant 25% | Scavenger-Mutant Dominant Class ---------------- Mutant | -10/Materials Resources | -11 -10 ----------- Run | Yrd Mat Matter Collected 408 | 287 121 Remotely . | . . Salvage Created 403 | 126 277 Parts 26 | 12 14 Haulers Intercepted . | . . Recyclers Shooed . | . . Parts Field Recycled . | . . Retrieved Matter . | . . Parts Self-Destructed . | . . Prevented . | . . Kills | -11 -10 ------- Run | Yrd Mat Combat Hostiles Destroyed 10 | . 10 Guns 7 | . 7 AOE 3 | . 3 Classes Destroyed 5 | 2 3 Worker 1 | . 1 Tunneler 3 | 3 . Recycler 1 | 1 . Swarmer 6 | . 6 Grunt 4 | . 4 Best Kill Streak 4 | 2 4 Combat Bots Only 3 | . 3 Max Kills in Single Turn 2 | 1 2 Gunslinging . | . . Exploded 2 | . 2 Melee . | . . Uniques/NPCs Destroyed . | . . Combat | -11 -10 -------- Run | Yrd Mat Hostile Shots Fired 64 | . 64 Missed 13 | . 13 Damage Taken 904 | 34 870 Core 293 | . 293 Absorbed by Shields . | . . Core Remaining (%) 100 | 100 . Volleys Fired 48 | 12 36 Largest 2 | 2 2 Hottest 100 | 60 100 Shots Fired 90 | 24 66 Gun 84 | 24 60 Cannon . | . . Launcher . | . . Special 6 | . 6 Kinetic 55 | 12 43 Thermal 6 | . 6 Explosive . | . . Electromagnetic 29 | 12 17 Robot Hit Streak 9 | 9 9 Robot Miss Streak 5 | 3 5 Penetration Max . | . . Secondary Targets 2 | . 2 Max Gunslinging Chain 1 | . 1 Shots Hit Robots 52 | 14 38 Core Hits 27 | 7 20 Critical Kills . | . . Critical Parts Destroyed . | . . Critical Strikes . | . . Melee Attacks . | . . Impact . | . . Slashing . | . . Piercing . | . . Sneak Attacks . | . . Combat Hostiles . | . . Follow-up Attacks . | . . Damage Inflicted 805 | 170 635 Guns 525 | 138 387 Cannons . | . . Explosions 280 | 32 248 Melee . | . . Ramming . | . . Kinetic 241 | 45 196 Thermal 280 | 32 248 Explosive . | . . Electromagnetic 284 | 93 191 Impact . | . . Slashing . | . . Piercing . | . . Highest Corruption . | . . Average Corruption . | . . Corruption Purged . | . . Corruption Blocked . | . . Overload Shots . | . . Overflow Damage 18 | 14 4 Projectiles . | . . Explosions 18 | 14 4 Melee . | . . Knockbacks . | . . Impact . | . . Kinetic . | . . Secondary . | . . Self-Inflicted Damage 112 | 34 78 Shots 3 | 1 2 Rammed . | . . Targets Rammed . | . . Kicked . | . . Crushed . | . . Highest Temperature 120 | 32 120 Average Temperature 30 | 15 34 Received Heat Transfer 228 | . 228 Siege Activations . | . . Robots Corrupted . | . . Combat Hostiles . | . . Parts Fried . | . . Impact Corruptions . | . . Robots Melted . | . . Combat Hostiles . | . . Parts Melted . | . . Heat Transferred 300 | . 300 Parts Sabotaged . | . . Parts Stolen . | . . Parts Stripped . | . . Power Chain Reactions 4 | 1 3 Alert | -11 -10 ------- Run | Yrd Mat Peak Influence 295 | 10 295 Initial 6 | . 6 Average 73 | 5 84 Maximum Alert Level 1 | . 1 Low Security (%) 87 | 100 85 Level 1 12 | . 14 Level 2 . | . . Level 3 . | . . Level 4 . | . . Level 5 . | . . High Security . | . . Max Security . | . . Squads Dispatched 1 | . 1 Investigation . | . . Extermination . | . . Reinforcement 1 | . 1 Assault . | . . Garrison . | . . Intercept . | . . Searches Triggered . | . . Construction Impeded . | . . Haulers Reinforced . | . . Active Scanning Responses . | . . Cargo Convoy Interrupts . | . . Stealth | -11 -10 --------- Run | Yrd Mat Distress Signals 1 | . 1 Communications Jammed . | . . Distress Signals . | . . Times Spotted 17 | . 17 Peak Tracking Total 4 | . 4 Tactical Retreats 1 | . 1 Traps | -11 -10 ------- Run | Yrd Mat Traps Triggered . | . . Indirectly . | . . Trap Hack Attempts . | . . Triggered . | . . Disarmed . | . . Reprogrammed . | . . Reused . | . . Traps Extracted . | . . Installed . | . . Triggered . | . . Machines | -11 -10 ---------- Run | Yrd Mat Machines Disabled 2 | . 2 Max in Single Turn 1 | . 1 Machines Repaired . | . . Machines Dismantled . | . . Machines Sabotaged . | . . Overloaded Fab Kills . | . . Hacking | -11 -10 --------- Run | Yrd Mat Machines Accessed 7 | . 7 Terminals 4 | . 4 Fabricators . | . . Repair Stations 1 | . 1 Recycling Units 2 | . 2 Scanalyzers . | . . Garrison Access . | . . Total Hacks 11 | . 11 Successful 4 | . 4 Failed 7 | . 7 Catastrophic . | . . Database Lockouts . | . . Manual . | . . Terminals 7 | . 7 Fabricators . | . . Repair Stations 2 | . 2 Recycling Units 2 | . 2 Scanalyzers . | . . Garrison Access . | . . Terminal Hacks 3 | . 3 Alert Level 1 | . 1 Locate Traps 1 | . 1 Zone Layout 1 | . 1 Fabricator Hacks . | . . Repair Station Hacks . | . . Recycling Unit Hacks 1 | . 1 Report Inventory 1 | . 1 Scanalyzer . | . . Garrison Access Hacks . | . . Unauthorized Hacks . | . . Terminals . | . . Fabricators . | . . Repair Stations . | . . Recycling Units . | . . Scanalyzers . | . . Garrison Access . | . . Data Cores Recovered . | . . Used . | . . Hacking Detections 5 | . 5 Full Trace Events . | . . Feedback Events . | . . Feedback Blocked . | . . Robot Schematics Acquired . | . . Robots Built . | . . Authchips . | . . Time . | . . Total Robot Build Rating . | . . Part Schematics Acquired . | . . Parts Built . | . . Authchips . | . . Time . | . . Total Part Build Rating . | . . Parts Repaired . | . . Time . | . . Parts Recycled . | . . Recycled Matter . | . . Retrieved Matter . | . . Retrieved Components . | . . Parts Scanalyzed . | . . Part Schematics Acquired . | . . Parts Damaged . | . . Bothacking | -11 -10 ------------ Run | Yrd Mat Used RIF Installer . | . . Robots Hacked . | . . Non-combat . | . . Combat . | . . Robot Hacks Applied . | . . Relay Couplers Released . | . . Fabnet Peak Effective % . | . . Robots Rewired . | . . Allies Hacked . | . . Hacks Repelled . | . . Allies | -11 -10 -------- Run | Yrd Mat Total Allies . | . . Largest Group . | . . Highest-Rated Group . | . . Highest-Rated Ally . | . . Total Orders . | . . Ally Attacks . | . . Total Damage . | . . Kills . | . . Allies Corrupted . | . . Allies Melted . | . . Intel | -11 -10 ------- Run | Yrd Mat Robot Analysis Total . | . . Derelict Logs Recovered . | . . Drone Launches . | . . Drone Recoveries . | . . Exploration | -11 -10 ------------- Run | Yrd Mat Turns Passed 1676 | 237 1439 Spaces Moved 648 | 125 523 Core 15 | 15 . Treads 633 | 110 523 Legs . | . . Wheels . | . . Hover . | . . Flight . | . . Fastest Speed 50 | 50 160 Average Speed 178 | 146 186 Slowest Speed 320 | 160 320 Overloaded Moves . | . . Propulsion Burnouts . | . . Robots Hopped . | . . Cave-ins Triggered 1 | . 1 Exploration Rate (%) 43 | 8 78 Regions Visited 1 Branch Regions . Pre-discovered Areas . | . . Known Exits Taken . | . . Unknown Exits Taken 1 | 1 . Scrap Searched . | . . Spaces Dug 6 | . 6 Terrain Destroyed 20 | 4 16 Melee . | . . Projectile 6 | . 6 AOE 14 | 4 10 Terrain Rammed . | . . Walls Destroyed . | . . Machines Disabled . | . . Actions | -11 -10 --------- Run | Yrd Mat Total 1076 | 158 918 Wait 336 | . 336 Move 647 | 124 523 Hop . | . . Pick Up 21 | 13 8 Fast Attach . | . . Attach 11 | 8 3 Detach . | . . Swap 9 | . 9 Drop 4 | 1 3 Fire 48 | 12 36 Melee . | . . Ram . | . . Kick . | . . Crush . | . . Escape Stasis . | . . Rewire . | . . Trap . | . . Miscellaneous . | . . Route ------- -11/Scrapyard -10/Materials (discovered 3 exits: [*Mat x2] / [*Min]) History --------- Turn | Location | Event 8 | -11/Scrapyard | Discovered new exit (range 14) 238 | -11/Scrapyard | Entered Materials 315 | -10/Materials | Build established: Mutant 542 | -10/Materials | Discovered new exit (range 15) 604 | -10/Materials | Discovered new exit (range 6) 698 | -10/Materials | Discovered new exit (range 8) 1222 | -10/Materials | Core integrity fell below 50% 1544 | -10/Materials | Build established: Scavenger-Mutant 1678 | -10/Materials | Crushed by falling debris 1678 | -10/Materials | Smashed by cave-in Last Messages --------------- 01241_ K-01 Serf collects debris. 01246_ K-01 Serf destroyed. 01246_ K-01 Serf collects debris. 01250_ Dropped Lgt. Assault Rifle. 01251_ K-01 Serf collects debris. 01256_ Acquired 10 matter. 01258_ K-01 Serf collects debris. 01260_ Extracted 8 matter. 01322_ Connecting with Repair Station... 01384_ Acquired Huge Storage Unit. 01394_ Connecting with Terminal... 01587_ Connecting with Recycling Unit... 01601_ O-16 Technician: "IFF HANDSHAKE FAILED. SECURING TERMINAL." 01604_ ALERT: Hostiles spotted, dispatching reinforcements to Terminal M004. 01678_ The unstable cave ceiling collapses. 01678_ Crushed by falling debris. 01678_ Mining Laser destroyed. 01678_ System corrupted by crushing effect (+5). Map ----- +----------------------------------------------------+ | # #?????????# #??# # #??????? | | [ ##+############ #??# # """ #??????? | | ## # #######+###! """ #??????? | | ## + # """ #??????? | | ## [!! # + ! #??????? | | ## !!! # # """ #??????? | | ##### !!! ########### ## """ #??????? | | #???#+############?????????# ## """ #??????? | | #???#%#??????####??????????# ## #??????? | | #####!#####! ############ ###########??????? | | *% = #????????????????? | | %[= T #????????????????? | | #????????????????? | | ##+########## % ############ #????????????????? | | #??????? ##??????????# ##############+#?? | | T #???????? #???????????# #?? | | #??????????#???????????# ^ #?? | | #??????????????????#######+## #####+## #?? | | ! #??????????????????# # # #????? | | #??????????????????#"" """ # # #????? | | #######??????????????????#"" """ + # """#????? | | ?????????????????????????#"T """ # # Y"#????? | | ?????????????????????????#"" # # """#????? | | ?????????????????????????#"" """ # #! #????? | | ???????????????????????### """ # ########????? | | ???????????????????????# @! """ # ##########??? | | ???????????????????????##; + #??? | | ????????????????????????#####################+#### | | ?????????????????????????????????????????# | | ?????????????????????????????????????????# | | ?????????????????????????????????????????# | | ?????????????????????????????????????????# | | ?????????????????????????????????????????######### | | | | | | | | | | | | | | | | | | | | | | | | | | | | | | | | | | | +----------------------------------------------------+ Best States ------------- Heat Dissipation 25 Energy Generation 10 Energy Capacity 125 Matter Stores 300 Matter Capacity 300 Sight Range 16 Terrain Scan Range 16 Terrain Scan Density 10 Evasion (%) 50 Recoil Reduction 2 Item Schematics ----------------- None Robot Schematics ------------------ None Fabricated ------------ Nothing Alien Tech Used ----------------- None Achievements -------------- None Challenges ------------ None Game ------ Seed AdvancedLinearArmor Manual? 0 Play Time 00:17:53 Cumulative 19.8 hours Start 2024.07.23 @ 10:18:49 End 2024.07.23 @ 10:29:24 Sessions 1 Manual Loads 0 Difficulty Rogue Special Mode None Game No. 27 Rogue 27 Adventurer 0 Explorer 0 Win Type - Total 0 Types 0/0/0/0/0/0/0/0/0 Lore% 13 Gallery% 20 Achievement% 16 Wizard Run 0 Options --------- Layout 2 ASCII 0 Keyboard 0 Movement Arrows Keybinds 0 Fullscreen 1 Font 16/SmallcapsGlow Map View 25x24 Zoom Use 99% Tactical HUD 1 Map Filters NONE Filters NONE Steam SD RUN: 0cce8373-383e-42fd-8ac8-c737d301b9f3